[Event "*** Titled Tuesday Blitz"]
[Site "Chess.com"]
[Date "2018.11.06"]
[Round "2"]
[White "DanielNaroditsky"]
[Black "Barcelona_Guy"]
[Result "1-0"]
[WhiteElo "2977"]
[BlackElo "2472"]
[TimeControl "180+2"]
[EndTime "13:21:59 PST"]
[Termination "DanielNaroditsky won by resignation"]

1. d4 {[%clk 0:03:01.9]} 1... Nf6 {[%clk 0:03:00.6]} 2. c4 {[%clk 0:03:03.1]}
2... e6 {[%clk 0:03:01.7]} 3. Nc3 {[%clk 0:03:04.2]} 3... Bb4 {[%clk 0:03:02.6]}
4. f3 {[%clk 0:03:05.8]} 4... c5 {[%clk 0:03:00.6]} 5. d5 {[%clk 0:03:06.9]}
5... b5 {[%clk 0:03:01.8]} 6. e4 {[%clk 0:03:08]} 6... d6 {[%clk 0:03:03.3]} 7.
Ne2 {[%clk 0:03:08.3]} 7... bxc4 {[%clk 0:02:59.7]} 8. Ng3 {[%clk 0:03:09.7]}
8... exd5 {[%clk 0:02:54.6]} 9. exd5 {[%clk 0:03:11.6]} 9... O-O {[%clk
0:02:54.8]} 10. Bxc4 {[%clk 0:03:12.8]} 10... Re8+ {[%clk 0:02:56.1]} 11. Kf2
{[%clk 0:03:10.2]} 11... Nbd7 {[%clk 0:02:54.4]} 12. Nce4 {[%clk 0:02:38.2]}
12... Nxe4+ {[%clk 0:02:46.8]} 13. Nxe4 {[%clk 0:02:40.1]} 13... Ne5 {[%clk
0:02:39.5]} 14. Be2 {[%clk 0:02:40.9]} 14... c4 {[%clk 0:02:39.3]} 15. Be3
{[%clk 0:02:40.1]} 15... f5 {[%clk 0:02:38.3]} 16. Nc3 {[%clk 0:02:28.5]} 16...
Qh4+ {[%clk 0:02:25.3]} 17. g3 {[%clk 0:02:29.3]} 17... Qf6 {[%clk 0:02:24.4]}
18. Re1 {[%clk 0:02:21.1]} 18... Bd7 {[%clk 0:02:11.5]} 19. Kg1 {[%clk 0:02:12]}
19... Re7 {[%clk 0:02:02.3]} 20. f4 {[%clk 0:01:59.6]} 20... Nd3 {[%clk
0:01:24.5]} 21. Bxd3 {[%clk 0:02:00.8]} 21... Rxe3 {[%clk 0:01:17.8]} 22. Rxe3
{[%clk 0:01:54.7]} 22... Bc5 {[%clk 0:01:18.9]} 23. Qd2 {[%clk 0:01:51.5]} 23...
Re8 {[%clk 0:01:17.2]} 24. Re1 {[%clk 0:01:52.3]} 24... Qd4 {[%clk 0:00:48.9]}
25. Kg2 {[%clk 0:01:42.6]} 25... Rxe3 {[%clk 0:00:47.3]} 26. Qxe3 {[%clk
0:01:41.6]} 26... Qxe3 {[%clk 0:00:42.8]} 27. Rxe3 {[%clk 0:01:43.5]} 27... Bxe3
{[%clk 0:00:44.5]} 28. Bxc4 {[%clk 0:01:44.8]} 28... Bd4 {[%clk 0:00:43.8]} 29.
Kf3 {[%clk 0:01:44.2]} 29... Kf7 {[%clk 0:00:42.7]} 30. Ke2 {[%clk 0:01:41.5]}
30... h6 {[%clk 0:00:29.3]} 31. Kd3 {[%clk 0:01:42.3]} 31... Bf6 {[%clk
0:00:30.6]} 32. b4 {[%clk 0:01:39.4]} 32... g5 {[%clk 0:00:31.4]} 33. Ne2 {[%clk
0:01:38.8]} 33... Kg6 {[%clk 0:00:31.2]} 34. Ke3 {[%clk 0:01:38.4]} 34... Kh5
{[%clk 0:00:32.1]} 35. Kf3 {[%clk 0:01:39.7]} 35... Ba4 {[%clk 0:00:32.1]} 36.
Bd3 {[%clk 0:01:36.8]} 36... Kg6 {[%clk 0:00:28.9]} 37. g4 {[%clk 0:01:36.7]}
37... Bd1 {[%clk 0:00:25.2]} 38. Bxf5+ {[%clk 0:01:22.5]} 38... Kf7 {[%clk
0:00:26.2]} 39. Bd3 {[%clk 0:01:24.2]} 39... gxf4 {[%clk 0:00:26.8]} 40. Kxf4
{[%clk 0:01:26.1]} 40... Be5+ {[%clk 0:00:28]} 41. Kf5 {[%clk 0:01:25.5]} 41...
Bxh2 {[%clk 0:00:28.4]} 42. Nc3 {[%clk 0:01:19.6]} 42... Bf3 {[%clk 0:00:29.4]}
43. Be4 {[%clk 0:01:20.8]} 43... Bxe4+ {[%clk 0:00:30.1]} 44. Nxe4 {[%clk
0:01:22.5]} 44... Ke7 {[%clk 0:00:28.3]} 45. a4 {[%clk 0:01:21.1]} 45... Bg1
{[%clk 0:00:29.2]} 46. Kg6 {[%clk 0:01:18.8]} 46... Be3 {[%clk 0:00:29.7]} 47.
Ng3 {[%clk 0:01:20.3]} 47... Kd7 {[%clk 0:00:27.5]} 48. Nf5 {[%clk 0:01:20.8]}
48... Bd2 {[%clk 0:00:28.5]} 49. b5 {[%clk 0:01:21.8]} 49... Kc7 {[%clk
0:00:30]} 50. Nxh6 {[%clk 0:01:21.3]} 50... Kb6 {[%clk 0:00:31.5]} 51. Nf5
{[%clk 0:01:19.8]} 51... Kc5 {[%clk 0:00:32.6]} 52. Ne7 {[%clk 0:01:09]} 52...
Kb4 {[%clk 0:00:30.1]} 53. Nc8 {[%clk 0:01:10.2]} 53... Kxa4 {[%clk 0:00:19.3]}
54. Nxa7 {[%clk 0:01:06.8]} 54... Be3 {[%clk 0:00:16.9]} 55. Nc8 {[%clk
0:01:07.4]} 55... Kxb5 {[%clk 0:00:18.1]} 56. Nxd6+ {[%clk 0:01:08]} 56... Kc5
{[%clk 0:00:19.6]} 57. Nf5 {[%clk 0:01:08.2]} 57... Bf4 {[%clk 0:00:19.3]} 58.
d6 {[%clk 0:01:08.6]} 58... Kc6 {[%clk 0:00:20.1]} 59. Kf6 {[%clk 0:01:08.3]}
59... Kd7 {[%clk 0:00:20.7]} 60. g5 {[%clk 0:01:09.8]} 60... Bd2 {[%clk
0:00:21.6]} 61. g6 {[%clk 0:01:10.8]} 61... Bc3+ {[%clk 0:00:23.1]} 62. Kf7
{[%clk 0:01:12.4]} 1-0

[Event "*** Titled Tuesday Blitz"]
[Site "Chess.com"]
[Date "2018.11.06"]
[Round "2"]
[White "gemarin"]
[Black "Shivagami"]
[Result "1-0"]
[WhiteElo "2076"]
[BlackElo "2015"]
[TimeControl "180+2"]
[EndTime "13:22:00 PST"]
[Termination "gemarin won by resignation"]

1. d4 {[%clk 0:03:01.9]} 1... d5 {[%clk 0:02:58.3]} 2. c4 {[%clk 0:03:01.2]}
2... c6 {[%clk 0:02:59.1]} 3. Nc3 {[%clk 0:03:01.9]} 3... Nf6 {[%clk 0:02:59.7]}
4. e3 {[%clk 0:03:01.9]} 4... a6 {[%clk 0:02:59.8]} 5. cxd5 {[%clk 0:02:59.9]}
5... cxd5 {[%clk 0:02:59.4]} 6. Nf3 {[%clk 0:02:58.9]} 6... Nc6 {[%clk
0:02:57.5]} 7. h3 {[%clk 0:02:55.7]} 7... Bf5 {[%clk 0:02:55.4]} 8. Qb3 {[%clk
0:02:52.2]} 8... Rb8 {[%clk 0:02:50.4]} 9. Be2 {[%clk 0:02:51.4]} 9... e6 {[%clk
0:02:49.9]} 10. O-O {[%clk 0:02:52]} 10... Bd6 {[%clk 0:02:45.1]} 11. a3 {[%clk
0:02:48]} 11... O-O {[%clk 0:02:44.3]} 12. Nh4 {[%clk 0:02:48.1]} 12... Be4
{[%clk 0:02:35.7]} 13. f3 {[%clk 0:02:42.1]} 13... Bg3 {[%clk 0:02:24.3]} 14.
fxe4 {[%clk 0:02:42.4]} 14... Bxh4 {[%clk 0:02:23.7]} 15. e5 {[%clk 0:02:43.4]}
15... Nd7 {[%clk 0:02:15.5]} 16. Qd1 {[%clk 0:02:40.9]} 16... f5 {[%clk
0:02:05.5]} 17. exf6 {[%clk 0:02:41.1]} 17... Nxf6 {[%clk 0:02:03.1]} 18. Bd2
{[%clk 0:02:39.6]} 18... Bg3 {[%clk 0:02:03.6]} 19. Bd3 {[%clk 0:02:39.1]} 19...
Bc7 {[%clk 0:02:02.9]} 20. Be1 {[%clk 0:01:54.7]} 20... Qd6 {[%clk 0:02:00.9]}
21. g3 {[%clk 0:01:56.1]} 21... e5 {[%clk 0:01:46]} 22. Be2 {[%clk 0:01:36.8]}
22... Qe6 {[%clk 0:01:30.8]} 23. Kg2 {[%clk 0:01:34.4]} 23... exd4 {[%clk
0:01:17.6]} 24. exd4 {[%clk 0:01:34.3]} 24... Rbe8 {[%clk 0:01:15.2]} 25. Bf3
{[%clk 0:01:33.5]} 25... Ne4 {[%clk 0:01:13.9]} 26. Qd3 {[%clk 0:01:28.4]} 26...
Qg6 {[%clk 0:00:47.8]} 27. Nxd5 {[%clk 0:01:06.9]} 27... Bd6 {[%clk 0:00:22.8]}
28. Nc3 {[%clk 0:00:37.5]} 28... Ng5 {[%clk 0:00:06.4]} 29. Qxg6 {[%clk
0:00:37.4]} 29... hxg6 {[%clk 0:00:08.3]} 30. Bd5+ {[%clk 0:00:36.7]} 30... Kh8
{[%clk 0:00:08.6]} 31. h4 {[%clk 0:00:37.5]} 31... Nh7 {[%clk 0:00:07.2]} 32.
Rxf8+ {[%clk 0:00:35.7]} 32... Rxf8 {[%clk 0:00:09.1]} 33. Bf2 {[%clk
0:00:36.6]} 33... Nf6 {[%clk 0:00:07]} 34. Bf3 {[%clk 0:00:38.2]} 34... Re8
{[%clk 0:00:06.5]} 35. Rd1 {[%clk 0:00:37.5]} 35... Rd8 {[%clk 0:00:07.1]} 36.
Ne4 {[%clk 0:00:37.6]} 36... Bc7 {[%clk 0:00:07.6]} 37. Nxf6 {[%clk 0:00:34.7]}
37... gxf6 {[%clk 0:00:07.8]} 38. Be4 {[%clk 0:00:34.1]} 38... Kg7 {[%clk
0:00:06.6]} 39. b4 {[%clk 0:00:33.5]} 39... f5 {[%clk 0:00:07.5]} 40. Bf3 {[%clk
0:00:33.9]} 40... Kf7 {[%clk 0:00:07.9]} 41. Bxc6 {[%clk 0:00:33.8]} 41... bxc6
{[%clk 0:00:08.1]} 42. Rc1 {[%clk 0:00:35.3]} 42... Rd6 {[%clk 0:00:08.1]} 43.
Kf3 {[%clk 0:00:33.7]} 43... Ke6 {[%clk 0:00:08.4]} 44. g4 {[%clk 0:00:34.8]}
44... Kd5 {[%clk 0:00:06.4]} 45. Rc5+ {[%clk 0:00:31.2]} 45... Ke6 {[%clk
0:00:06.7]} 46. gxf5+ {[%clk 0:00:32.1]} 46... gxf5 {[%clk 0:00:07.7]} 47. Bg3
{[%clk 0:00:33]} 47... Rd7 {[%clk 0:00:06.5]} 48. Rxc6+ {[%clk 0:00:34.5]} 48...
Bd6 {[%clk 0:00:06]} 49. Rxd6+ {[%clk 0:00:34.9]} 1-0

[Event "*** Titled Tuesday Blitz"]
[Site "Chess.com"]
[Date "2018.11.06"]
[Round "2"]
[White "OK97"]
[Black "tioloko"]
[Result "1/2-1/2"]
[WhiteElo "2736"]
[BlackElo "2533"]
[TimeControl "180+2"]
[EndTime "13:22:05 PST"]
[Termination "Game drawn by repetition"]

1. Nf3 {[%clk 0:03:01.9]} 1... Nf6 {[%clk 0:03:00.3]} 2. c4 {[%clk 0:03:03]}
2... g6 {[%clk 0:03:00.3]} 3. Nc3 {[%clk 0:03:04.4]} 3... Bg7 {[%clk 0:03:02]}
4. g3 {[%clk 0:03:05.3]} 4... O-O {[%clk 0:03:03.1]} 5. Bg2 {[%clk 0:03:06.8]}
5... d6 {[%clk 0:03:04.4]} 6. d4 {[%clk 0:03:07.6]} 6... Nbd7 {[%clk 0:03:05.2]}
7. O-O {[%clk 0:03:08.7]} 7... Re8 {[%clk 0:03:05.3]} 8. e4 {[%clk 0:03:07.8]}
8... e5 {[%clk 0:03:06]} 9. h3 {[%clk 0:03:01.6]} 9... exd4 {[%clk 0:03:06.2]}
10. Nxd4 {[%clk 0:03:03.5]} 10... a6 {[%clk 0:03:07.8]} 11. a4 {[%clk
0:03:02.8]} 11... Ne5 {[%clk 0:03:04.7]} 12. b3 {[%clk 0:03:02.7]} 12... Bd7
{[%clk 0:02:59.2]} 13. Be3 {[%clk 0:02:55.5]} 13... Nc6 {[%clk 0:02:58.9]} 14.
Re1 {[%clk 0:02:35.5]} 14... h6 {[%clk 0:02:53.4]} 15. Qd2 {[%clk 0:02:32.9]}
15... Kh7 {[%clk 0:02:52.9]} 16. Rad1 {[%clk 0:02:31.5]} 16... a5 {[%clk
0:02:45.6]} 17. Kh2 {[%clk 0:02:23.2]} 17... Nxd4 {[%clk 0:02:40.5]} 18. Bxd4
{[%clk 0:02:22.9]} 18... Bc6 {[%clk 0:02:42.4]} 19. Qc2 {[%clk 0:02:02.2]} 19...
Nd7 {[%clk 0:02:38.4]} 20. Be3 {[%clk 0:01:37.7]} 20... Re7 {[%clk 0:02:32.8]}
21. Nd5 {[%clk 0:01:21.9]} 21... Bxd5 {[%clk 0:02:21.3]} 22. cxd5 {[%clk
0:01:23.8]} 22... b6 {[%clk 0:02:21.9]} 23. h4 {[%clk 0:01:11.5]} 23... h5
{[%clk 0:02:07.3]} 24. f3 {[%clk 0:01:06.6]} 24... Bf6 {[%clk 0:01:54.4]} 25.
Bf1 {[%clk 0:01:03]} 25... Ne5 {[%clk 0:01:53.4]} 26. Kg2 {[%clk 0:01:03.3]}
26... Qd7 {[%clk 0:01:53.4]} 27. Bb5 {[%clk 0:01:03.6]} 27... Qc8 {[%clk
0:01:53.2]} 28. Rc1 {[%clk 0:01:04.2]} 28... Rb8 {[%clk 0:01:41.1]} 29. Qf2
{[%clk 0:00:59.8]} 29... Qd8 {[%clk 0:01:35.7]} 30. Rc2 {[%clk 0:01:00.2]} 30...
Nd7 {[%clk 0:01:33.1]} 31. Bxd7 {[%clk 0:00:56.2]} 31... Rxd7 {[%clk 0:01:31]}
32. Qe2 {[%clk 0:00:52.7]} 32... Kg8 {[%clk 0:01:28.2]} 33. Rec1 {[%clk
0:00:49.2]} 33... Rb7 {[%clk 0:01:29]} 34. Rc6 {[%clk 0:00:48.4]} 34... Qb8
{[%clk 0:01:24.5]} 35. Qb5 {[%clk 0:00:44.5]} 35... Bb2 {[%clk 0:01:22.3]} 36.
R1c2 {[%clk 0:00:42.6]} 36... Ba3 {[%clk 0:01:23.2]} 37. R6c4 {[%clk 0:00:32.2]}
37... Re7 {[%clk 0:01:19.4]} 38. Bg5 {[%clk 0:00:32.9]} 38... Re8 {[%clk
0:00:55.6]} 39. Rxc7 {[%clk 0:00:32.4]} 39... Rxc7 {[%clk 0:00:57]} 40. Rxc7
{[%clk 0:00:33.4]} 40... Qxc7 {[%clk 0:00:55]} 41. Qxe8+ {[%clk 0:00:34.5]}
41... Kg7 {[%clk 0:00:55.8]} 42. Be7 {[%clk 0:00:22.9]} 42... Bb2 {[%clk
0:00:46.3]} 43. Qf8+ {[%clk 0:00:22.3]} 43... Kh7 {[%clk 0:00:47.6]} 44. Qxf7+
{[%clk 0:00:19.8]} 44... Bg7 {[%clk 0:00:48.3]} 45. g4 {[%clk 0:00:09]} 45...
Qc2+ {[%clk 0:00:48.8]} 46. Kg3 {[%clk 0:00:10.3]} 46... Qd1 {[%clk 0:00:40.1]}
47. gxh5 {[%clk 0:00:05.3]} 47... Qg1+ {[%clk 0:00:40.8]} 48. Kf4 {[%clk
0:00:04.4]} 48... Qc1+ {[%clk 0:00:41.4]} 49. Kg4 {[%clk 0:00:05.4]} 49... Qg1+
{[%clk 0:00:41.4]} 50. Kf4 {[%clk 0:00:06.4]} 50... Qc1+ {[%clk 0:00:42.3]} 51.
Kg3 {[%clk 0:00:07.3]} 51... Qg1+ {[%clk 0:00:43.2]} 52. Kh3 {[%clk 0:00:08.9]}
52... Qh1+ {[%clk 0:00:44.3]} 53. Kg3 {[%clk 0:00:10.1]} 53... Qg1+ {[%clk
0:00:45.4]} 54. Kf4 {[%clk 0:00:11]} 54... Qc1+ {[%clk 0:00:46.2]} 1/2-1/2

[Event "*** Titled Tuesday Blitz"]
[Site "Chess.com"]
[Date "2018.11.06"]
[Round "2"]
[White "andrzej"]
[Black "m3alam"]
[Result "1-0"]
[WhiteElo "2238"]
[BlackElo "2127"]
[TimeControl "180+2"]
[EndTime "13:22:07 PST"]
[Termination "andrzej won by resignation"]

1. d4 {[%clk 0:03:01.8]} 1... Nf6 {[%clk 0:03:00.2]} 2. c4 {[%clk 0:03:02.7]}
2... g6 {[%clk 0:03:01.3]} 3. Nf3 {[%clk 0:03:03.1]} 3... Bg7 {[%clk 0:03:02.7]}
4. g3 {[%clk 0:03:04.7]} 4... O-O {[%clk 0:03:04]} 5. Bg2 {[%clk 0:03:06.4]}
5... d5 {[%clk 0:03:02.7]} 6. O-O {[%clk 0:03:07.5]} 6... dxc4 {[%clk
0:03:03.7]} 7. Na3 {[%clk 0:03:08.4]} 7... c5 {[%clk 0:03:02.4]} 8. Nxc4 {[%clk
0:02:56]} 8... cxd4 {[%clk 0:03:02.3]} 9. Nxd4 {[%clk 0:02:55.1]} 9... a6 {[%clk
0:02:51.2]} 10. Bg5 {[%clk 0:02:15.3]} 10... Ne4 {[%clk 0:02:38.2]} 11. Bxe4
{[%clk 0:02:10.7]} 11... Bxd4 {[%clk 0:02:38.8]} 12. Bh6 {[%clk 0:01:58.5]}
12... Bg7 {[%clk 0:02:19.2]} 13. Bxg7 {[%clk 0:01:58.6]} 13... Kxg7 {[%clk
0:02:20.2]} 14. Qb3 {[%clk 0:01:34.6]} 14... Nc6 {[%clk 0:02:18]} 15. Nb6 {[%clk
0:01:23.1]} 15... Rb8 {[%clk 0:02:18.1]} 16. Rfd1 {[%clk 0:01:21.8]} 16... Qc7
{[%clk 0:02:15.3]} 17. Qc3+ {[%clk 0:01:17.4]} 17... Qe5 {[%clk 0:01:56.7]} 18.
Rac1 {[%clk 0:01:04.4]} 18... Kg8 {[%clk 0:01:46.1]} 19. Bxc6 {[%clk 0:00:55.3]}
19... Qxc3 {[%clk 0:01:46.2]} 20. Rxc3 {[%clk 0:00:55.9]} 20... bxc6 {[%clk
0:01:47.1]} 21. Rxc6 {[%clk 0:00:50.8]} 21... Be6 {[%clk 0:01:47.8]} 22. b3
{[%clk 0:00:45.9]} 22... Rb7 {[%clk 0:01:40]} 23. Na4 {[%clk 0:00:40.7]} 23...
Bd7 {[%clk 0:01:18.8]} 24. Rxa6 {[%clk 0:00:40.7]} 24... Rc8 {[%clk 0:01:16.8]}
25. Nb6 {[%clk 0:00:26.3]} 25... Bb5 {[%clk 0:00:54.6]} 26. Ra8 {[%clk
0:00:20.1]} 26... Rxa8 {[%clk 0:00:53.1]} 27. Nxa8 {[%clk 0:00:22]} 27... Ra7
{[%clk 0:00:54]} 28. Rd8+ {[%clk 0:00:20.6]} 28... Kg7 {[%clk 0:00:54.4]} 29. a4
{[%clk 0:00:22.3]} 29... Bxe2 {[%clk 0:00:54.8]} 30. Nb6 {[%clk 0:00:23.6]}
30... Bf3 {[%clk 0:00:55.3]} 31. Kf1 {[%clk 0:00:22.7]} 31... Rc7 {[%clk
0:00:54.9]} 32. Rc8 {[%clk 0:00:22.9]} 32... Rb7 {[%clk 0:00:54.2]} 33. a5
{[%clk 0:00:23.3]} 33... Bd1 {[%clk 0:00:48.9]} 34. b4 {[%clk 0:00:23.8]} 34...
e5 {[%clk 0:00:40.6]} 35. Ke1 {[%clk 0:00:24.6]} 35... Bf3 {[%clk 0:00:41.1]}
36. Kd2 {[%clk 0:00:22.8]} 36... h5 {[%clk 0:00:40.4]} 37. Rd8 {[%clk
0:00:23.2]} 37... Bc6 {[%clk 0:00:36.9]} 38. Rd6 {[%clk 0:00:23.8]} 38... Bb5
{[%clk 0:00:37.6]} 39. Nd5 {[%clk 0:00:22]} 39... e4 {[%clk 0:00:32.4]} 40. Nc3
{[%clk 0:00:21.2]} 40... Bd3 {[%clk 0:00:31.5]} 41. Rd4 {[%clk 0:00:16.9]} 41...
f5 {[%clk 0:00:30.9]} 42. f3 {[%clk 0:00:17.7]} 42... Kf6 {[%clk 0:00:31]} 43.
fxe4 {[%clk 0:00:19.1]} 43... fxe4 {[%clk 0:00:26.6]} 44. Nxe4+ {[%clk
0:00:17.7]} 44... Bxe4 {[%clk 0:00:26.3]} 45. Rxe4 {[%clk 0:00:18.5]} 45... Kf5
{[%clk 0:00:28.2]} 46. Rc4 {[%clk 0:00:19.1]} 46... Rd7+ {[%clk 0:00:27.9]} 47.
Kc3 {[%clk 0:00:20.6]} 47... Rd1 {[%clk 0:00:28.3]} 48. a6 {[%clk 0:00:21.4]}
48... Rh1 {[%clk 0:00:28.4]} 49. a7 {[%clk 0:00:22.1]} 49... Rxh2 {[%clk
0:00:29.4]} 50. a8=Q {[%clk 0:00:21.9]} 1-0

[Event "*** Titled Tuesday Blitz"]
[Site "Chess.com"]
[Date "2018.11.06"]
[Round "2"]
[White "Alex_Terzi"]
[Black "Fy_Rakotomaharo"]
[Result "0-1"]
[WhiteElo "2470"]
[BlackElo "2381"]
[TimeControl "180+2"]
[EndTime "13:22:19 PST"]
[Termination "Fy_Rakotomaharo won by resignation"]

1. e4 {[%clk 0:03:01.9]} 1... e5 {[%clk 0:03:00.6]} 2. Nf3 {[%clk 0:03:02.6]}
2... Nc6 {[%clk 0:03:01]} 3. Bb5 {[%clk 0:03:04.1]} 3... a6 {[%clk 0:03:01.6]}
4. Ba4 {[%clk 0:03:04.8]} 4... d6 {[%clk 0:03:02.7]} 5. O-O {[%clk 0:03:04]}
5... Bd7 {[%clk 0:03:03.7]} 6. c3 {[%clk 0:03:04]} 6... g6 {[%clk 0:03:04.3]} 7.
d4 {[%clk 0:03:04.5]} 7... Bg7 {[%clk 0:03:05.5]} 8. h3 {[%clk 0:03:02.5]} 8...
Nf6 {[%clk 0:03:05.3]} 9. Re1 {[%clk 0:03:03.1]} 9... O-O {[%clk 0:03:05.8]} 10.
Nbd2 {[%clk 0:03:02.5]} 10... Re8 {[%clk 0:03:04.1]} 11. d5 {[%clk 0:03:01.8]}
11... Ne7 {[%clk 0:03:02.6]} 12. Bc2 {[%clk 0:03:01.7]} 12... c6 {[%clk
0:02:59.2]} 13. c4 {[%clk 0:03:02.8]} 13... cxd5 {[%clk 0:02:46.4]} 14. cxd5
{[%clk 0:03:03.4]} 14... Rc8 {[%clk 0:02:45.3]} 15. Bd3 {[%clk 0:03:03.9]} 15...
Nh5 {[%clk 0:02:42]} 16. b4 {[%clk 0:02:57]} 16... Nf4 {[%clk 0:02:38]} 17. Bf1
{[%clk 0:02:57.5]} 17... Qb6 {[%clk 0:02:34.2]} 18. a3 {[%clk 0:02:53.5]} 18...
Bb5 {[%clk 0:02:34]} 19. Bb2 {[%clk 0:02:48.2]} 19... a5 {[%clk 0:02:12.1]} 20.
Qb3 {[%clk 0:02:28.4]} 20... a4 {[%clk 0:01:49.9]} 21. Qd1 {[%clk 0:02:21.1]}
21... Qa6 {[%clk 0:01:42.7]} 22. Re3 {[%clk 0:01:43.7]} 22... h6 {[%clk
0:01:38.7]} 23. Ne1 {[%clk 0:01:28.6]} 23... f5 {[%clk 0:01:33.8]} 24. exf5
{[%clk 0:00:40.4]} 24... Nexd5 {[%clk 0:01:07.5]} 25. fxg6 {[%clk 0:00:25.8]}
25... Nxe3 {[%clk 0:01:02.3]} 26. fxe3 {[%clk 0:00:27.7]} 26... Nxg6 {[%clk
0:00:37.6]} 27. Bxb5 {[%clk 0:00:22.2]} 27... Qxb5 {[%clk 0:00:37.8]} 28. Ne4
{[%clk 0:00:23.8]} 28... Qc6 {[%clk 0:00:31.7]} 29. Nc3 {[%clk 0:00:19.3]} 29...
e4 {[%clk 0:00:22.2]} 30. b5 {[%clk 0:00:18.2]} 30... Qc5 {[%clk 0:00:17.7]} 31.
Nxa4 {[%clk 0:00:06.9]} 31... Qxe3+ {[%clk 0:00:15.8]} 32. Kh1 {[%clk
0:00:08.5]} 32... Bxb2 {[%clk 0:00:12.4]} 33. Nxb2 {[%clk 0:00:10.4]} 33... Qc3
{[%clk 0:00:13]} 34. Qd5+ {[%clk 0:00:11.4]} 34... Kh7 {[%clk 0:00:13.5]} 35.
Qf7+ {[%clk 0:00:10.7]} 35... Qg7 {[%clk 0:00:13.8]} 36. Qxg7+ {[%clk
0:00:11.9]} 36... Kxg7 {[%clk 0:00:15]} 37. Rd1 {[%clk 0:00:12.7]} 37... e3
{[%clk 0:00:15.3]} 38. Na4 {[%clk 0:00:10.6]} 38... e2 {[%clk 0:00:14.9]} 39.
Rb1 {[%clk 0:00:11.4]} 39... Rc4 {[%clk 0:00:15.1]} 40. Nb6 {[%clk 0:00:11.9]}
40... Rd4 {[%clk 0:00:16.4]} 41. Na4 {[%clk 0:00:04.1]} 41... Rxa4 {[%clk
0:00:16.4]} 42. Kg1 {[%clk 0:00:06]} 42... Rd4 {[%clk 0:00:17.1]} 43. Kf2 {[%clk
0:00:07.9]} 43... Rf4+ {[%clk 0:00:18.1]} 44. Kg3 {[%clk 0:00:08.2]} 44... Re3+
{[%clk 0:00:18.8]} 45. Kh2 {[%clk 0:00:09]} 45... Rf1 {[%clk 0:00:20.1]} 46. Rc1
{[%clk 0:00:10]} 46... Nf4 {[%clk 0:00:20.6]} 47. g3 {[%clk 0:00:10.2]} 47...
Rf2+ {[%clk 0:00:19.1]} 48. Kg1 {[%clk 0:00:10.7]} 48... Nxh3+ {[%clk
0:00:20.3]} 49. Kh1 {[%clk 0:00:11.8]} 49... Rxg3 {[%clk 0:00:21.8]} 50. Rc7+
{[%clk 0:00:11.1]} 50... Kg6 {[%clk 0:00:22.2]} 51. Ng2 {[%clk 0:00:12.5]} 51...
Rgxg2 {[%clk 0:00:21.4]} 52. Rc1 {[%clk 0:00:14.4]} 52... Rf1+ {[%clk
0:00:21.1]} 0-1

[Event "*** Titled Tuesday Blitz"]
[Site "Chess.com"]
[Date "2018.11.06"]
[Round "2"]
[White "danyuffa"]
[Black "Polish_fighter3000"]
[Result "1-0"]
[WhiteElo "2618"]
[BlackElo "2979"]
[TimeControl "180+2"]
[EndTime "13:22:24 PST"]
[Termination "danyuffa won by resignation"]

1. d4 {[%clk 0:03:01.7]} 1... Nf6 {[%clk 0:03:00.6]} 2. c4 {[%clk 0:03:03.1]}
2... e6 {[%clk 0:03:01.5]} 3. g3 {[%clk 0:03:04.3]} 3... c5 {[%clk 0:03:01.3]}
4. d5 {[%clk 0:03:04.9]} 4... exd5 {[%clk 0:03:03.2]} 5. cxd5 {[%clk 0:03:05.9]}
5... d6 {[%clk 0:03:04.8]} 6. Nc3 {[%clk 0:03:07.3]} 6... g6 {[%clk 0:03:06.3]}
7. Bg2 {[%clk 0:03:08.8]} 7... Bg7 {[%clk 0:03:08]} 8. Nf3 {[%clk 0:03:10.4]}
8... O-O {[%clk 0:03:09.6]} 9. O-O {[%clk 0:03:11.3]} 9... Re8 {[%clk
0:03:11.3]} 10. Bf4 {[%clk 0:03:11.5]} 10... Na6 {[%clk 0:03:12.4]} 11. Re1
{[%clk 0:03:04.5]} 11... Ne4 {[%clk 0:02:55.9]} 12. Nxe4 {[%clk 0:03:03.8]}
12... Rxe4 {[%clk 0:02:57.8]} 13. Nd2 {[%clk 0:03:04.3]} 13... Rb4 {[%clk
0:02:51.1]} 14. a3 {[%clk 0:02:45.9]} 14... Rxf4 {[%clk 0:02:50.1]} 15. gxf4
{[%clk 0:02:47.8]} 15... Bxb2 {[%clk 0:02:51.6]} 16. Rb1 {[%clk 0:02:41.1]}
16... Bxa3 {[%clk 0:02:51.9]} 17. e4 {[%clk 0:02:42.2]} 17... Bb4 {[%clk
0:02:52.9]} 18. e5 {[%clk 0:02:42.7]} 18... Bf5 {[%clk 0:02:54.2]} 19. Be4
{[%clk 0:02:12.6]} 19... Bh3 {[%clk 0:02:08.9]} 20. Re3 {[%clk 0:02:10.4]} 20...
Qh4 {[%clk 0:02:08.4]} 21. Nc4 {[%clk 0:02:09.2]} 21... Qxf4 {[%clk 0:02:04.2]}
22. Nxd6 {[%clk 0:02:01.2]} 22... Qxe5 {[%clk 0:01:36]} 23. Nxf7 {[%clk
0:02:00.8]} 23... Qf4 {[%clk 0:01:35.7]} 24. d6 {[%clk 0:01:50.4]} 24... Be6
{[%clk 0:00:53.8]} 25. d7 {[%clk 0:01:34.6]} 25... Bxf7 {[%clk 0:00:46.8]} 26.
d8=Q+ {[%clk 0:01:34.9]} 26... Rxd8 {[%clk 0:00:48.2]} 27. Qxd8+ {[%clk
0:01:36.1]} 27... Kg7 {[%clk 0:00:49.8]} 28. Bd5 {[%clk 0:01:13.9]} 28... Qf5
{[%clk 0:00:44.8]} 29. Rd1 {[%clk 0:01:00.4]} 29... Qg4+ {[%clk 0:00:44.3]} 30.
Bg2 {[%clk 0:01:01.3]} 30... Nc7 {[%clk 0:00:38.7]} 31. Rd7 {[%clk 0:00:55.7]}
31... Ne6 {[%clk 0:00:38.5]} 32. Qe7 {[%clk 0:00:54.7]} 32... Ng5 {[%clk
0:00:28.2]} 33. Rg3 {[%clk 0:00:48]} 33... Qf4 {[%clk 0:00:18.7]} 34. Rxg5
{[%clk 0:00:43.3]} 34... c4 {[%clk 0:00:18.1]} 35. Qe5+ {[%clk 0:00:40.5]} 35...
Qxe5 {[%clk 0:00:16]} 36. Rxe5 {[%clk 0:00:42.4]} 36... c3 {[%clk 0:00:11.2]}
37. Bd5 {[%clk 0:00:43.2]} 37... Kf6 {[%clk 0:00:11.2]} 38. Re4 {[%clk
0:00:39.5]} 38... Bxd5 {[%clk 0:00:06.3]} 39. Rxd5 {[%clk 0:00:39.6]} 39... a5
{[%clk 0:00:05.9]} 40. Rb5 {[%clk 0:00:35.3]} 40... Ba3 {[%clk 0:00:04.3]} 41.
Rc4 {[%clk 0:00:34.1]} 41... Bb2 {[%clk 0:00:05.5]} 42. Rxa5 {[%clk 0:00:34.3]}
42... Ke6 {[%clk 0:00:05]} 43. Rb5 {[%clk 0:00:35.7]} 43... Ba1 {[%clk 0:00:06]}
44. Kf1 {[%clk 0:00:35.8]} 44... Kd6 {[%clk 0:00:06.8]} 45. Ke2 {[%clk
0:00:36.4]} 45... h5 {[%clk 0:00:07.2]} 46. Kd3 {[%clk 0:00:37.2]} 46... h4
{[%clk 0:00:08.7]} 47. Rxh4 {[%clk 0:00:33.4]} 47... g5 {[%clk 0:00:08.8]} 48.
Rxg5 {[%clk 0:00:31.5]} 48... Kc7 {[%clk 0:00:09]} 49. Rh6 {[%clk 0:00:31.2]}
49... Kb8 {[%clk 0:00:09.6]} 50. Rh7 {[%clk 0:00:30.8]} 50... Ka8 {[%clk
0:00:08.4]} 51. Rb5 {[%clk 0:00:31.4]} 51... Bb2 {[%clk 0:00:03.7]} 52. Kc2
{[%clk 0:00:31.5]} 52... Ka7 {[%clk 0:00:02.9]} 53. Rhxb7+ {[%clk 0:00:29.9]}
53... Ka6 {[%clk 0:00:04.8]} 54. Rxb2 {[%clk 0:00:30.9]} 54... cxb2 {[%clk
0:00:06.7]} 55. Rxb2 {[%clk 0:00:32.1]} 1-0